bitfinex/quotes_ETHUSD_20251217
["timestamp","ask_amount","ask_price","bid_price","bid_amount"]
[1766001788130,0.86988423,2820.0,2818.3,2.3103]
[1766001788331,0.405504,2819.8,2818.3,2.3103]
[1766001788499,2.64628023,2819.5,2818.3,2.3103]
[1766001789257,2.1819,2819.4,2818.3,2.3103]
[1766001789532,0.04604052,2819.8,2818.2,2.185]
[1766001789533,2.69702075,2819.8,2819.1,0.002]
[1766001789741,2.23264052,2819.8,2818.3,2.6203]
[1766001790428,2.23264052,2819.8,2818.0,0.002]
[1766001790429,2.1866,2819.1,2818.0,0.002]
[1766001790735,2.1866,2819.1,2818.0,2.4038]
[1766001790895,2.1866,2819.1,2818.0,2.1619]
[1766001791099,2.1866,2819.1,2818.1,2.3649]
[1766001791826,2.1866,2819.1,2818.0,0.002]
[1766001792343,2.1866,2819.1,2818.0,2.3669]
[1766001792548,0.04604052,2819.4,2818.2,4.5248]
[1766001792693,0.04604052,2820.0,2818.3,4.5248]
[1766001792694,2.3137,2819.9,2818.3,4.5248]
[1766001792891,2.3137,2819.9,2818.3,2.1599]
[1766001793091,2.3137,2819.9,2818.4,2.3649]
[1766001793503,2.3137,2819.9,2818.5,2.3649]
[1766001793703,2.3137,2819.7,2818.6,0.45248]
[1766001794430,2.3137,2819.7,2818.2,2.82928023]
[1766001794605,2.35974052,2819.7,2818.2,2.82928023]
[1766001794800,2.35974052,2819.7,2818.2,6.37763912]
[1766001795327,2.35974052,2819.7,2818.2,2.82928023]
[1766001796247,2.35974052,2819.7,2818.5,2.3649]
[1766001796404,2.3137,2819.5,2818.6,0.45248]
[1766001796737,2.77808023,2819.5,2818.6,0.45248]
[1766001796938,2.3137,2820.4,2818.6,0.45248]
[1766001797140,2.3137,2820.4,2818.4,2.82928023]
[1766001797346,2.3137,2820.2,2818.4,2.82928023]
[1766001797812,2.3137,2820.0,2818.4,2.82928023]
[1766001798013,2.3137,2819.8,2818.5,0.002]
[1766001798214,0.04604052,2819.9,2818.6,2.3649]
[1766001798420,2.77808023,2819.7,2818.7,0.49911802]
[1766001798738,2.3137,2819.7,2818.7,0.49911802]
[1766001799440,2.3137,2819.7,2818.5,0.002]
[1766001802828,2.3137,2819.1,2818.0,0.002]
[1766001804055,2.3137,2819.1,2818.0,2.3669]
[1766001804240,2.3137,2819.1,2818.3,2.3649]
[1766001804548,2.3137,2819.1,2818.1,2.3649]
[1766001804750,2.3137,2819.1,2818.2,0.45268]
[1766001804921,2.3137,2819.1,2818.2,2.81758]
[1766001805558,2.3137,2819.1,2818.0,0.002]
[1766001805739,2.3137,2819.1,2817.7,2.82928023]
[1766001806546,2.3137,2819.1,2817.7,5.70889095]
[1766001806719,2.3137,2819.1,2817.6,2.82928023]
[1766001806919,2.3137,2819.1,2817.7,4.98918023]
[1766001807226,2.3137,2818.9,2817.8,0.49891802]
[1766001808747,2.3137,2818.9,2817.7,2.82928023]
[1766001809857,2.3137,2818.9,2817.4,4.5268]
[1766001810038,2.3137,2818.9,2817.5,6.37846176]
[1766001810226,2.3137,2818.9,2817.6,2.62428023]
[1766001810556,2.3137,2818.7,2817.7,3.0286842]
[1766001811234,2.3137,2818.7,2817.8,2.3649]
[1766001812059,2.3137,2819.1,2818.1,2.3649]
[1766001812255,2.3137,2819.1,2818.3,2.3649]
[1766001813523,2.3137,2819.5,2818.6,2.3649]
[1766001813747,0.23597405,2819.4,2818.6,2.3649]
[1766001813954,2.3137,2819.5,2818.7,2.1599]
[1766001814125,2.3137,2819.6,2818.3,2.3649]
[1766001814330,2.3137,2819.6,2818.3,2.82928023]
[1766001814522,2.3137,2819.6,2818.3,2.62428023]
[1766001814722,2.3137,2819.6,2818.4,2.82928023]
[1766001814952,2.3137,2819.4,2818.4,3.32819825]
[1766001815454,2.3137,2819.4,2818.3,2.1599]
[1766001815455,2.3137,2819.2,2818.3,2.3649]
[1766001815623,2.3137,2819.2,2818.3,2.3669]
[1766001816046,0.04604052,2819.4,2818.3,0.002]
[1766001816047,2.3137,2819.0,2818.3,0.002]
[1766001816257,2.3137,2818.8,2817.4,0.002]
[1766001816462,2.3137,2818.6,2817.6,4.5248]
[1766001816661,0.2719204,2818.5,2817.7,2.3649]
[1766001816878,2.5856204,2818.5,2817.7,2.3649]
[1766001817174,2.5856204,2818.5,2817.4,2.83128023]
[1766001817348,2.5856204,2818.5,2817.5,2.82928023]
[1766001817548,2.5856204,2818.5,2817.7,2.3649]
[1766001819374,2.57226204,2818.4,2817.7,2.3649]
[1766001819540,2.57226204,2818.4,2817.4,2.83128023]
[1766001819941,0.04604052,2818.9,2817.7,2.3649]
[1766001819942,2.77808023,2818.9,2817.7,2.3649]
[1766001820138,2.3137,2818.9,2817.9,2.3649]
[1766001820378,2.3137,2818.7,2817.7,2.3649]
[1766001820538,2.3137,2819.0,2817.9,2.3649]
[1766001820742,2.2144,2818.8,2817.9,2.3649]
[1766001820943,2.2144,2818.8,2818.0,2.4783]
[1766001822849,2.2144,2818.8,2818.0,4.6947]
[1766001823274,2.2144,2818.8,2818.1,2.4783]
[1766001823482,2.26044052,2819.1,2818.1,4.6947]
[1766001823677,0.001,2818.9,2818.1,2.68587]
[1766001823978,0.04604052,2819.1,2817.8,3.54884516]
[1766001823979,0.04604052,2819.9,2818.7,2.4783]
[1766001824183,2.26044052,2819.5,2818.2,2.4783]
[1766001824354,2.2144,2819.3,2818.3,2.72613]
[1766001825082,2.2144,2819.3,2818.4,2.4783]
[1766001825587,2.26044052,2819.3,2818.4,2.4783]
[1766001826567,2.26044052,2819.3,2818.5,2.4783]
[1766001827281,0.04604052,2819.9,2818.5,2.4783]
[1766001827282,2.2144,2819.6,2818.5,2.2164]
[1766001827582,2.2144,2819.4,2818.5,0.494253]
[1766001828157,2.2144,2819.4,2817.9,3.54868888]
[1766001828158,0.04604052,2819.1,2818.0,2.4783]
[1766001828384,0.04604052,2818.9,2817.8,2.68078023]
[1766001828680,2.2144,2818.6,2817.8,0.46438023]
[1766001831279,2.2144,2818.6,2817.7,2.4783]
[1766001832685,2.2144,2818.6,2817.5,0.002]
[1766001832885,2.2144,2818.4,2817.5,0.35733933]
[1766001833056,2.2144,2818.4,2817.5,3.30001956]
[1766001833258,2.2144,2818.4,2817.5,0.002]
[1766001835246,2.2144,2818.0,2816.8,2.4783]
[1766001835487,2.2144,2817.8,2816.5,2.4783]
[1766001835861,2.2144,2817.8,2816.6,2.4783]
[1766001836077,2.2144,2817.6,2816.6,2.94797]
[1766001836891,2.2144,2817.6,2816.7,2.4783]
[1766001837793,2.2144,2817.6,2816.5,2.4783]
[1766001838693,2.2144,2817.6,2816.4,0.002]
[1766001839001,2.2144,2817.6,2816.6,2.4783]
[1766001839204,2.46304846,2817.5,2816.6,4.6947]
[1766001840373,2.46304846,2817.5,2816.4,0.002]
[1766001840714,0.405504,2817.1,2815.3,2.2164]
[1766001840916,0.405504,2817.0,2815.6,2.4783]
[1766001841118,2.26044052,2817.3,2816.2,2.4783]
[1766001841269,2.26044052,2817.3,2816.5,0.002]
[1766001841475,2.26044052,2817.3,2816.5,2.4803]
[1766001841885,0.46438023,2817.6,2816.7,2.4783]
[1766001841886,2.2144,2817.6,2816.7,2.4783]
[1766001842108,2.44044405,2817.6,2816.7,2.4783]
[1766001842617,0.04604052,2817.7,2817.1,2.4783]
[1766001842910,0.04604052,2817.7,2817.3,2.4783]
[1766001843271,2.26044052,2817.9,2817.3,2.51379497]
[1766001843475,0.04604052,2817.9,2817.3,2.4783]
[1766001843715,2.2144,2817.8,2816.6,4.6947]
[1766001843918,2.2144,2817.6,2816.7,0.93405023]
[1766001844402,0.27208457,2817.7,2816.9,4.6947]
[1766001844808,0.27208457,2817.7,2816.5,2.2184]
[1766001844809,2.2144,2817.6,2816.5,2.2184]
[1766001845010,2.2144,2817.6,2816.5,0.46638023]
[1766001845221,2.2144,2817.4,2816.5,0.002]
[1766001845378,2.2144,2817.0,2815.8,2.4783]
[1766001845697,2.2144,2817.0,2816.0,2.2164]
[1766001846000,2.2144,2817.0,2816.1,2.4783]
[1766001846920,0.04604052,2817.1,2815.5,2.4783]
[1766001846921,2.2144,2816.5,2815.5,2.4783]
[1766001847107,0.04604052,2816.8,2815.9,2.4783]
[1766001847309,0.04604052,2816.8,2816.2,2.4783]
[1766001847613,0.04604052,2816.8,2816.0,0.24783]
[1766001847794,2.26044052,2816.8,2816.0,0.46438023]
[1766001848917,2.26044052,2816.8,2815.8,2.2164]
[1766001848918,2.26044052,2816.8,2815.8,2.4783]
[1766001849119,2.26044052,2816.8,2815.9,2.94268023]
[1766001849318,0.04604052,2816.6,2815.6,2.94268023]
[1766001849522,2.2144,2816.5,2815.6,2.94268023]
[1766001849724,2.2144,2816.5,2815.7,0.98028825]
[1766001850258,2.2144,2816.5,2816.0,0.002]
[1766001850430,0.04604052,2816.6,2816.0,2.3142]
[1766001850636,0.04604052,2816.4,2816.0,0.002]
[1766001850794,2.2776,2816.3,2815.4,2.4588]
[1766001850989,2.2776,2816.3,2815.5,0.94279023]
[1766001852001,0.001,2817.0,2815.6,0.0355164]
[1766001852208,2.2786,2817.0,2815.7,2.4568]
[1766001852393,0.04604052,2816.9,2815.9,2.4568]
[1766001852596,2.2776,2816.6,2815.5,2.4568]
[1766001852820,2.2776,2816.6,2815.6,2.70268]
[1766001852995,2.32364052,2816.5,2815.6,2.92118023]
[1766001853196,2.32364052,2816.5,2815.6,0.46438023]
[1766001853694,2.2776,2816.2,2815.4,0.002]
[1766001854106,2.2776,2816.0,2815.4,0.002]
[1766001854300,2.2776,2815.8,2815.0,2.4568]
[1766001854528,2.2776,2815.8,2814.7,2.4568]
[1766001854733,2.2776,2815.8,2814.7,2.92118023]
[1766001855524,2.2776,2815.8,2814.7,2.3253]
[1766001855716,2.2776,2815.8,2814.8,2.78968023]
[1766001856048,2.32364052,2816.1,2815.1,2.4568]
[1766001856526,0.04604052,2815.9,2815.1,4.7821]
[1766001856850,0.04604052,2815.9,2815.3,2.4568]
[1766001857908,0.04604052,2816.1,2815.4,2.36081893]
[1766001858145,0.04604052,2816.1,2815.7,2.4568]
[1766001858310,2.32364052,2816.5,2815.7,2.4568]
[1766001858636,2.2776,2816.5,2815.8,2.4568]
[1766001859535,0.04604052,2816.7,2815.8,4.7821]
[1766001859740,0.04604052,2816.7,2815.9,2.4568]
[1766001859958,0.04604052,2816.7,2816.1,2.4568]
[1766001860738,0.04604052,2816.9,2816.1,2.4568]
[1766001860937,0.04604052,2816.9,2815.9,0.94259023]
[1766001861114,0.04604052,2816.9,2815.9,0.47821]
[1766001861319,2.2776,2817.2,2816.0,7.1022398]
[1766001861509,2.2776,2817.2,2816.1,0.75804498]
[1766001862115,0.04604052,2817.3,2816.1,0.75804498]
[1766001862316,0.04604052,2817.3,2816.1,1.22242521]
[1766001862634,0.04604052,2817.3,2816.2,0.46438023]
[1766001863021,0.04604052,2817.3,2816.3,4.7821]
[1766001863235,0.04604052,2817.3,2816.2,0.46438023]
[1766001863436,0.04604052,2817.3,2816.3,4.7821]
[1766001863638,0.04604052,2817.3,2816.5,2.3253]
[1766001863846,2.32364052,2817.3,2816.6,2.4568]
[1766001864024,2.32364052,2817.3,2816.4,0.87972672]
[1766001864341,2.32364052,2817.3,2816.4,2.4568]
[1766001864542,2.32364052,2817.3,2816.2,2.3253]
[1766001864718,2.32364052,2817.3,2816.2,4.7821]
[1766001865041,2.32364052,2817.3,2816.4,2.4568]
[1766001865266,2.32364052,2817.3,2816.5,2.4568]
[1766001865442,2.56060862,2817.3,2816.2,0.46438023]
[1766001865625,2.2776,2817.0,2815.7,2.4568]
[1766001865835,0.04604052,2816.4,2815.3,0.002]
[1766001866156,2.2776,2816.3,2815.3,2.3273]
[1766001866456,0.04604052,2816.4,2815.4,2.3253]
[1766001866457,0.46438023,2816.1,2815.4,2.3253]
[1766001866656,0.04604052,2816.8,2815.3,0.002]
[1766001866657,2.2776,2817.0,2815.6,2.3253]
[1766001866860,2.2776,2817.0,2815.9,2.4568]
[1766001867328,0.46438023,2817.2,2816.0,0.002]
[1766001867329,0.405504,2816.9,2816.0,0.002]
[1766001867526,2.2776,2816.8,2815.5,2.3253]
[1766001867727,2.2776,2816.6,2815.6,2.68933]
[1766001868750,2.2776,2816.6,2815.3,0.002]
[1766001868954,2.2776,2816.6,2815.4,2.4568]
[1766001869128,2.2776,2816.6,2815.5,2.4568]
[1766001870325,2.2776,2816.4,2815.5,2.4568]
[1766001870525,2.2776,2816.2,2815.5,2.4568]
[1766001870748,0.4060136,2817.0,2815.8,2.3253]
[1766001871056,0.2379681,2817.3,2816.1,4.7821]
[1766001871057,2.32364052,2817.1,2816.1,4.7821]
[1766001871222,2.32364052,2817.1,2816.1,2.4568]
[1766001874844,0.001,2817.3,2815.9,0.405504]
[1766001875166,0.001,2817.3,2816.2,0.405504]
[1766001875937,0.001,2817.3,2816.0,3.95657464]
[1766001876149,0.001,2817.3,2816.2,0.405504]
[1766001876343,0.001,2817.3,2816.3,4.7821]
[1766001876548,0.001,2817.3,2816.4,2.4568]
[1766001876831,0.001,2817.3,2816.4,4.7821]
[1766001877227,0.001,2817.3,2816.3,0.46438023]
[1766001877429,0.001,2817.3,2816.5,2.3253]
[1766001877656,0.001,2817.3,2816.6,2.4568]
[1766001877874,2.2786,2817.3,2816.6,2.4568]
[1766001878673,2.2786,2817.3,2816.5,6.41272849]
[1766001878830,2.2786,2817.3,2816.6,3.5503606]
[1766001879140,0.001,2817.3,2816.7,3.09806646]
[1766001879345,0.001,2817.3,2816.8,5.187604]
[1766001879556,0.001,2817.3,2816.9,2.4568]
[1766001880036,0.001,2817.3,2816.8,0.405504]
[1766001880281,0.001,2817.3,2816.9,2.4568]
[1766001880567,0.001,2817.3,2817.0,0.2862304]
[1766001880855,0.001,2817.3,2816.8,0.405504]
[1766001881058,2.2809,2817.2,2816.4,0.84757986]
[1766001881383,2.2809,2817.2,2815.6,2.2024]
[1766001881679,2.2809,2817.1,2815.7,3.55145682]
[1766001881969,2.74528023,2817.1,2815.3,0.002]
[1766001882135,2.74528023,2817.1,2815.5,3.55166197]
[1766001882653,2.74528023,2817.1,2815.4,2.631804]
[1766001882830,2.74528023,2816.9,2815.6,2.2263]
[1766001883027,2.2809,2816.9,2815.6,2.2263]
[1766001883431,2.74528023,2816.9,2815.7,0.405504]
[1766001883665,2.2809,2816.9,2815.7,0.405504]
[1766001883971,2.2809,2816.9,2815.8,0.2631804]
[1766001885077,2.2809,2816.9,2815.8,2.4655804]
[1766001885262,2.2809,2816.9,2815.8,0.2631804]
[1766001885431,2.2809,2816.9,2815.8,0.2651804]
[1766001886054,2.2809,2816.9,2815.8,0.002]
[1766001893070,0.04604052,2816.5,2815.3,0.002]
[1766001893362,2.2809,2816.4,2815.2,3.55213852]
[1766001893565,2.2809,2816.4,2815.1,3.55222426]
[1766001893734,2.2809,2816.4,2815.2,0.71046185]
[1766001894545,2.2809,2816.4,2815.8,0.002]
[1766001895235,2.2809,2816.4,2815.3,3.55198478]
[1766001895778,2.2809,2816.4,2815.5,2.2263]
[1766001896083,0.04704052,2817.3,2815.8,2.2263]
[1766001896084,2.2809,2816.9,2815.8,2.2263]
[1766001896238,2.2809,2816.8,2815.9,0.44287]
[1766001896438,2.2809,2816.8,2815.9,4.87157]
[1766001896671,2.2809,2817.2,2816.2,4.4287]
[1766001896849,2.2809,2817.2,2816.3,2.2263]
[1766001897164,2.2809,2817.2,2816.3,5.77705015]
[1766001897375,2.2809,2817.2,2816.4,0.79794502]
[1766001898760,2.2809,2817.2,2816.5,0.405504]
[1766001898961,2.2809,2817.2,2816.5,2.631804]
[1766001899169,0.001,2817.3,2816.6,4.4287]
[1766001899372,0.001,2817.3,2816.7,2.2263]
[1766001899559,0.001,2817.3,2816.8,2.66917]
[1766001900263,0.001,2817.3,2816.9,2.2263]
[1766001900455,0.001,2817.3,2816.8,0.44287]
[1766001900656,0.001,2817.3,2816.6,4.4287]
[1766001900873,2.2819,2817.3,2816.6,0.405504]
[1766001901174,2.2819,2817.3,2816.5,0.405504]
[1766001901469,2.2819,2817.3,2816.4,4.502e-05]
[1766001901651,2.2809,2817.1,2816.0,2.2283]
[1766001901851,2.2809,2817.1,2816.1,0.405504]
[1766001902068,2.2809,2817.1,2816.1,3.95648883]
[1766001902266,2.74528023,2817.1,2816.1,3.95648883]
[1766001902473,2.74528023,2817.1,2816.0,3.55309269]
[1766001902681,2.2809,2816.9,2815.4,3.55188996]
[1766001902838,2.2809,2816.9,2815.5,3.55171363]
[1766001903042,2.2809,2816.9,2815.4,2.2263]
[1766001903297,2.2809,2816.9,2815.8,2.2263]
[1766001903578,0.46538023,2817.3,2816.2,2.631804]
[1766001903579,2.2809,2817.2,2816.2,2.631804]
[1766001903782,2.2809,2817.2,2816.3,0.4834204]
[1766001903936,2.2809,2817.2,2816.0,0.405504]
[1766001904246,2.2809,2817.2,2816.2,0.405504]
[1766001905561,2.2809,2817.2,2816.2,6.18267802]
[1766001905961,2.2809,2817.2,2816.2,2.631804]
[1766001906169,2.2809,2817.2,2816.3,0.61827484]
[1766001906353,2.2809,2817.2,2816.0,3.55112949]
[1766001906541,2.2809,2817.2,2816.1,0.405504]
[1766001906838,2.2809,2817.2,2816.0,0.405504]
[1766001907042,2.2809,2817.2,2815.8,0.405504]
[1766001907578,2.2809,2817.2,2815.9,3.55126229]
[1766001907878,2.2809,2816.9,2816.1,0.405504]
[1766001908044,2.2809,2816.9,2816.1,4.834204]
[1766001908879,2.2809,2816.9,2816.0,6.63e-06]
[1766001909174,2.2809,2816.9,2815.8,3.55134161]
[1766001909364,2.2809,2816.9,2816.0,0.002]
[1766001909559,2.2809,2816.9,2815.5,2.2024]
[1766001909868,2.2809,2816.9,2815.6,3.55161617]
[1766001910074,2.50899,2816.9,2815.7,3.90663282]
[1766001910476,2.50899,2816.9,2815.1,3.55220839]
[1766001910477,15.03854361,2816.8,2815.1,3.55220839]
[1766001910676,1.8522,2816.6,2815.1,3.55222106]
[1766001910876,0.46438023,2816.5,2815.1,3.55222106]
[1766001911175,0.46438023,2816.3,2815.1,3.55222106]
[1766001911481,1.8522,2816.1,2815.1,3.55222106]
[1766001911677,1.8522,2816.1,2815.2,0.56624211]
[1766001913143,1.8522,2816.1,2815.2,6.23187431]
[1766001913855,1.8522,2816.1,2815.3,2.1135]
[1766001914180,1.8522,2816.1,2815.4,2.1135]
[1766001914360,1.8522,2816.6,2815.6,2.1135]
[1766001914558,2.04202405,2816.6,2815.7,0.43438]
[1766001915376,1.8522,2816.6,2815.7,2.54788]
[1766001918887,1.8522,2816.6,2815.8,2.1135]
[1766001920265,1.8522,2816.6,2815.8,5.66487616]
[1766001920667,1.8522,2816.6,2815.8,2.1135]
[1766001920869,1.8522,2816.6,2815.8,5.66487646]
[1766001921193,1.89824052,2817.0,2816.0,2.1135]
[1766001922265,1.89824052,2817.0,2815.9,3.06325565]
[1766001922857,1.89824052,2817.0,2815.9,0.83295565]
[1766001923053,1.89824052,2817.0,2815.7,0.405504]
[1766001923585,1.89824052,2817.0,2815.6,0.405504]
[1766001923885,1.89824052,2817.0,2815.6,3.9571415]
[1766001924088,1.8522,2817.0,2816.1,2.1135]
[1766001924384,1.8522,2817.0,2816.2,0.43438]
[1766001924585,1.8522,2817.0,2815.9,0.405504]
[1766001924976,1.8522,2817.0,2815.8,2.1135]
[1766001927384,1.8532,2817.0,2815.8,2.1135]
[1766001927713,0.04604052,2816.9,2815.6,0.002]
[1766001927856,0.04604052,2816.9,2814.9,3.55443711]
[1766001927857,1.8522,2816.6,2815.0,2.2303]
[1766001928064,0.405504,2816.5,2814.9,0.002]
[1766001928292,1.74721838,2816.2,2814.9,0.002]
[1766001928464,2.31658023,2816.0,2814.9,0.002]
[1766001928664,1.8522,2815.9,2814.9,0.002]
[1766001930205,1.8522,2815.9,2814.5,2.1135]
[1766001930206,1.8522,2815.7,2814.1,6.23394805]
[1766001930408,2.31658023,2815.6,2814.2,6.51332817]
[1766001930606,1.8522,2815.5,2814.3,0.405504]
[1766001930767,1.8522,2815.5,2814.4,3.55314061]
[1766001931596,1.8522,2815.5,2814.3,0.405504]
[1766001931597,1.8522,2816.6,2815.2,2.2303]
[1766001931777,1.8522,2816.6,2815.4,2.519004]
[1766001931976,1.8522,2816.6,2815.6,0.405504]
[1766001932205,1.8522,2816.6,2815.8,0.405504]
[1766001934311,1.8522,2816.6,2815.9,3.55126247]
[1766001935372,1.8522,2816.6,2815.8,3.95683308]
[1766001935672,1.8522,2817.1,2816.1,4.3438]
[1766001935905,1.8532,2817.0,2816.1,4.3438]
[1766001936417,1.8532,2817.0,2816.1,7.89472864]
[1766001937104,1.8532,2817.0,2816.1,5.66449584]
[1766001938085,1.8532,2817.0,2816.2,2.1135]
[1766001938302,1.8532,2817.0,2816.3,0.78947958]
[1766001938708,0.001,2817.0,2816.4,0.03550632]
[1766001938903,0.001,2817.0,2816.7,4.3438]
[1766001939101,0.001,2817.0,2816.8,2.1135]
[1766001939299,0.001,2817.0,2816.4,0.405504]
[1766001939511,1.8532,2817.0,2816.3,0.78947958]
[1766001939693,1.8532,2817.0,2816.3,3.55075684]
[1766001940723,1.8532,2817.0,2816.1,7.50752452]
[1766001943518,1.8532,2817.0,2815.9,1.18521113]
[1766001943816,1.8532,2817.0,2815.6,0.002]
[1766001944391,1.3777,2816.8,2815.6,0.002]
[1766001944591,1.3777,2816.4,2814.6,4.214]
[1766001944797,1.3777,2816.1,2814.6,11.31977925]
[1766001945009,1.3777,2816.0,2814.8,0.405504]
[1766001945213,1.3777,2816.0,2814.7,1.13217793]
[1766001946105,1.3777,2816.0,2814.8,0.405504]
[1766001946989,1.3777,2815.9,2814.7,0.13217793]
[1766001947190,1.3777,2815.7,2814.5,0.002]
[1766001947618,1.3777,2815.7,2814.5,0.407504]
[1766001947797,1.3777,2815.7,2814.5,3.55502603]
[1766001948002,1.3777,2815.7,2814.5,0.407504]
[1766001948517,1.3777,2815.7,2814.5,3.96052786]
[1766001948703,1.3777,2815.7,2814.6,0.39605279]
[1766001950730,1.3777,2815.7,2814.5,0.407504]
[1766001950895,0.9796,2815.4,2813.8,4.214]
[1766001951099,0.9796,2815.4,2813.5,7.76823732]
[1766001951325,0.9796,2815.2,2813.6,3.55415701]
[1766001951822,0.9796,2815.2,2813.9,2.0636]
[1766001952028,0.9796,2815.2,2814.0,0.4214]
[1766001952826,0.9796,2815.2,2813.6,9.17192249]
[1766001953026,0.9796,2815.2,2813.6,11.32232249]
[1766001953227,0.9796,2815.2,2813.7,0.405504]
[1766001953598,0.9796,2815.2,2813.4,2.0656]
[1766001953926,0.04604052,2815.3,2813.5,3.55424862]
[1766001953927,0.9796,2815.0,2813.5,3.55424862]
[1766001954222,0.9796,2815.0,2813.7,0.405504]
[1766001954592,0.9796,2815.0,2813.5,0.405504]
[1766001954918,0.9796,2815.0,2813.5,3.55424769]
[1766001956233,0.04604052,2814.9,2813.5,0.405504]
[1766001956522,0.9796,2814.6,2813.4,0.002]
[1766001956705,0.9796,2814.4,2812.8,2.0636]
[1766001956906,0.9796,2814.4,2812.8,4.214]
[1766001957091,0.9796,2814.4,2813.0,0.405504]
[1766001957294,0.9796,2814.4,2813.5,0.002]
[1766001957491,0.9736,2814.3,2812.8,2.0636]
[1766001957713,0.9736,2814.1,2812.8,0.20636]
[1766001957929,0.9736,2814.1,2812.8,3.76151622]
[1766001958337,0.9736,2814.1,2812.8,3.76153618]
[1766001958636,0.9736,2814.1,2812.8,0.20636]
[1766001958837,0.9736,2814.1,2812.7,3.55530232]
[1766001958999,0.9736,2814.1,2812.6,3.5553436]
[1766001959198,0.9736,2814.1,2812.9,0.405504]
[1766001959600,0.9736,2814.1,2812.3,3.5577165]
[1766001959601,0.9736,2813.5,2812.3,0.002]
[1766001959822,4.0180405,2814.0,2812.3,5.61936929]
[1766001959823,0.9716,2813.4,2812.3,5.61936929]
[1766001960022,8.74270935,2814.0,2812.2,0.002]
[1766001960023,0.9716,2813.8,2812.7,2.0636]
[1766001960228,0.9716,2813.8,2812.7,4.214]
[1766001960430,0.9716,2813.8,2812.5,3.55553717]
[1766001960622,0.9716,2813.8,2812.6,1.13251992]
[1766001960933,0.24542358,2814.4,2813.0,2.0636]
[1766001961253,0.9716,2814.3,2813.0,5.61846586]
[1766001961406,0.9716,2814.3,2812.9,0.405504]
[1766001961802,0.9716,2814.3,2813.0,7.10983254]
[1766001962040,8.92374834,2815.0,2813.5,2.0636]
[1766001962041,0.9716,2815.0,2813.5,2.0636]
[1766001962218,0.9716,2815.0,2813.7,2.0636]
[1766001962418,0.9716,2815.0,2813.8,2.0636]
[1766001962706,0.9716,2815.0,2813.6,0.20636]
[1766001962707,0.9716,2815.0,2814.2,4.214]
[1766001962916,0.9716,2815.0,2813.9,2.0636]
[1766001963121,0.9716,2815.0,2814.0,3.55366027]
[1766001963437,0.9716,2815.0,2814.1,0.56172603]
[1766001964315,0.9716,2815.0,2813.9,5.61735327]
[1766001964508,0.9716,2815.0,2813.6,3.76049913]
[1766001965342,0.51042075,2815.3,2813.6,3.76051237]
[1766001965343,0.46438023,2815.3,2813.6,3.76051237]
[1766001965535,0.9726,2815.2,2813.7,4.214]
[1766001965719,0.9726,2815.2,2813.6,7.31467785]
[1766001965919,0.9726,2815.2,2813.8,2.0636]
[1766001966522,0.9726,2815.2,2813.7,1.08709087]
[1766001966736,0.9726,2815.2,2813.3,0.567]
[1766001966737,0.405504,2813.3,2810.2,2.0636]
[1766001966956,3.736,2812.9,2810.8,3.68489363]
[1766001967178,0.92924447,2813.4,2811.0,7.11490572]
[1766001967354,0.92924447,2813.4,2811.2,4.214]
[1766001967523,0.92924447,2813.4,2811.1,0.61157326]
[1766001967524,0.92924447,2813.4,2811.3,0.03557073]
[1766001968224,0.92924447,2813.4,2811.4,4.214]
[1766001968422,0.92924447,2813.4,2811.6,4.214]
[1766001968659,0.92924447,2813.4,2811.9,4.214]
[1766001968866,0.92924447,2813.4,2812.0,2.0636]
[1766001969079,0.92924447,2813.4,2812.1,7.1121226]
[1766001969363,0.92924447,2813.4,2812.1,3.5560613]
[1766001969364,9.68940867,2813.4,2812.1,3.5560613]
[1766001969661,11.15629934,2813.4,2812.1,3.5560613]
[1766001969821,11.15629934,2813.4,2810.5,3.5579662]
[1766001969822,8.7601642,2812.9,2810.5,3.5579662]
[1766001970023,8.7601642,2812.9,2811.5,3.55680426]
[1766001970330,8.7601642,2812.9,2811.8,3.55643741]
[1766001971123,8.7601642,2812.9,2811.6,3.55668959]
[1766001971532,8.7601642,2812.9,2811.6,7.11338328]
[1766001972539,8.7601642,2813.1,2811.6,7.11338328]
[1766001972831,8.7601642,2813.1,2811.8,2.0109]
[1766001973031,8.7601642,2813.1,2811.9,0.576]
[1766001973449,8.7601642,2813.1,2811.9,4.13229699]
[1766001974254,8.7601642,2813.1,2811.9,3.55629699]
[1766001974963,8.7601642,2813.1,2811.9,11.46021122]
[1766001975156,8.7601642,2813.1,2812.1,3.5560613]
[1766001976260,8.7601642,2813.1,2812.0,5.56708015]
[1766001976261,8.7601642,2813.1,2812.0,5.56703343]
[1766001976566,8.7601642,2813.1,2811.9,3.55628166]
[1766001976863,0.46438023,2813.0,2812.0,3.5561834]
[1766001977256,0.46438023,2813.0,2811.9,7.11262846]
[1766001977763,0.46438023,2813.0,2812.0,0.76906285]
[1766001977948,0.46438023,2813.0,2812.0,5.11666285]
[1766001978274,8.7601642,2814.3,2812.2,0.405504]
[1766001978448,5.32574362,2815.1,2812.7,2.0109]
[1766001978449,8.7601642,2814.6,2812.7,2.0109]
[1766001978646,8.7601642,2814.6,2813.3,2.0109]
[1766001978846,0.87601642,2814.5,2813.3,2.44566]
[1766001979046,0.87601642,2814.5,2813.4,0.576]
[1766001979249,0.87601642,2814.5,2813.4,4.13030278]
[1766001979453,0.87601642,2814.5,2813.4,7.68472092]
[1766001979647,1.34039665,2814.5,2813.4,7.68472092]
[1766001979843,1.01005609,2814.4,2813.4,4.13030278]
[1766001980165,1.01005609,2814.4,2813.5,0.576]
[1766001980767,1.01005609,2814.4,2813.1,2.3367]
[1766001980967,1.01005609,2814.4,2813.2,3.55464063]
[1766001981269,1.01005609,2814.4,2813.2,4.13063326]
[1766001981570,1.01005609,2814.4,2813.3,7.10908896]
[1766001981743,1.01005609,2814.4,2813.3,9.11998896]
[1766001981941,1.01005609,2814.4,2813.3,11.45668896]